Cogmind - Beta 13 @@@ ROGUE MODE // 2024.04.01 @ 08:12:54 Player: Eusmilis Result: Destroyed by G-47 Trooper with Particle Gun Performance ------------- Evolutions (0) 0 Regions Visited (2) 400 Robots Destroyed (9) 45 Value Destroyed (202) 202 Prototype IDs (0) 0 Alien Tech Used (0) 0 Bonus (0) 0 TOTAL SCORE: 647 Bonus ------- None Cogmind --------- Core Integrity 0/250 Matter 253/300 Energy 249/250 System Corruption 0% Temperature Cool (14) Movement Treading (320) Ox2 Location -10/Mines Parts ------- > --- POWER (1) -------- Ion Engine > --- PROPULSION (2) --- Light Treads Light Treads > --- UTILITY (2) ------ Huge Storage Unit Signal Interpreter > --- WEAPON (2) ------- Assault Rifle > --- INVENTORY (25) --- Light Ion Engine Aluminum Leg Aluminum Leg Sensor Array Medium Laser Light Assault Rifle Grenade Launcher Peak State ------------ > --- POWER ------------ Light Ion Engine > --- PROPULSION ------- Wheel Wheel > --- UTILITY ---------- Huge Storage Unit Signal Interpreter > --- WEAPON ----------- Medium Laser Light Assault Rifle > --- INVENTORY -------- Ion Engine Light Ion Engine Aluminum Leg Aluminum Leg Wheel Sensor Array Medium Laser Assault Rifle Light Assault Rifle Grenade Launcher [Rating: 8] Favorites ----------- Power Light Ion Engine Engine Light Ion Engine Propulsion Wheel Treads Light Treads Wheel Wheel Utility Huge Storage Unit Storage Huge Storage Unit Processor Signal Interpreter Weapon Light Assault Rifle Energy Gun Medium Laser Ballistic Gun Light Assault Rifle Build | -11 -10 -10 ------- Run | Yrd Mat Min Slots Evolved . | . . . Power . | . . . Propulsion . | . . . Utility . | . . . Weapon . | . . . Parts Attached 12 | 5 6 1 Power 2 | 1 1 . Engine 2 | 1 1 . Core . | . . . Reactor . | . . . Propulsion 5 | 2 2 1 Treads 3 | . 2 1 Leg . | . . . Wheel 2 | 2 . . Hover . | . . . Flight . | . . . Utility 2 | . 2 . Device . | . . . Storage 1 | . 1 . Processor 1 | . 1 . Hackware . | . . . Protection . | . . . Artifact . | . . . Weapon 3 | 2 1 . Energy Gun 1 | 1 . . Energy Cannon . | . . . Ballistic Gun 2 | 1 1 . Ballistic Cannon . | . . . Launcher . | . . . Special Weapon . | . . . Impact Weapon . | . . . Slashing Weapon . | . . . Piercing Weapon . | . . . Special Melee Weapon . | . . . Unidentified Prototypes . | . . . Parts Lost 5 | . 5 . Power 1 | . 1 . Propulsion 2 | . 2 . Utility . | . . . Weapon 2 | . 2 . Highest Loss Streak 4 | . 4 . To Critical Strikes . | . . . Average Slot Usage (%) 91 | . 91 . Engine 13 | . 13 . Treads 4 | . 4 . Wheel 20 | . 20 . Storage 13 | . 13 . Processor 10 | . 10 . Energy Gun 12 | . 12 . Ballistic Gun 14 | . 14 . Naked Turns . | . . . Heaviest Build 88 | 6 88 . Greatest Support 40 | 20 40 . Greatest Overweight (x) 8 | . 8 . Average Overweight (x) 3 | . 4 . Largest Inventory Capacity 25 | 5 25 25 Average Capacity 22 | 5 24 25 Most Carried 10 | 4 10 7 Average Carried 7 | 1 7 7 Final Capacity 25 | 5 25 25 Final Carried 8 | 4 8 7 Class Distribution -------------------- 100% | Mutant Dominant Class ---------------- Mutant | -10/Materials Mutant | -10/Mines Resources | -11 -10 -10 ----------- Run | Yrd Mat Min Matter Collected 295 | 245 50 . Remotely . | . . . Salvage Created 239 | 33 206 . Parts 17 | 3 14 . Haulers Intercepted . | . . . Recyclers Shooed . | . . . Parts Field Recycled . | . . . Retrieved Matter . | . . . Parts Self-Destructed . | . . . Prevented . | . . . Kills | -11 -10 -10 ------- Run | Yrd Mat Min Combat Hostiles Destroyed 7 | 1 6 . Guns 7 | 1 6 . Classes Destroyed 4 | 1 3 . Tunneler 1 | . 1 . Watcher 1 | . 1 . Swarmer 3 | . 3 . Grunt 4 | 1 3 . Best Kill Streak 3 | 1 3 . Combat Bots Only 3 | 1 3 . Max Kills in Single Turn 2 | 1 2 . Gunslinging . | . . . Exploded . | . . . Melee . | . . . Uniques/NPCs Destroyed . | . . . Combat | -11 -10 -10 -------- Run | Yrd Mat Min Hostile Shots Fired 105 | 5 97 3 Missed 28 | . 28 . Damage Taken 947 | 55 848 44 Core 258 | 10 232 16 Absorbed by Shields . | . . . Core Remaining (%) 96 | 96 . . Volleys Fired 32 | 4 27 1 Largest 2 | 2 2 1 Hottest 70 | 70 70 20 Shots Fired 61 | 8 52 1 Gun 61 | 8 52 1 Cannon . | . . . Launcher . | . . . Special . | . . . Kinetic 35 | 4 30 1 Thermal 26 | 4 22 . Explosive . | . . . Electromagnetic . | . . . Robot Hit Streak 5 | 4 5 . Robot Miss Streak 3 | 1 3 2 Penetration Max . | . . . Secondary Targets 1 | . 1 . Max Gunslinging Chain 1 | . 1 . Shots Hit Robots 34 | 6 28 . Core Hits 16 | 2 14 . Critical Kills . | . . . Critical Parts Destroyed . | . . . Critical Strikes 1 | . 1 . Burn 1 | . 1 . Melee Attacks . | . . . Impact . | . . . Slashing . | . . . Piercing . | . . . Sneak Attacks . | . . . Combat Hostiles . | . . . Follow-up Attacks . | . . . Damage Inflicted 363 | 74 289 . Guns 363 | 74 289 . Cannons . | . . . Explosions . | . . . Melee . | . . . Ramming . | . . . Kinetic 176 | 24 152 . Thermal 187 | 50 137 . Explosive . | . . . Electromagnetic . | . . . Impact . | . . . Slashing . | . . . Piercing . | . . . Highest Corruption . | . . . Average Corruption . | . . . Corruption Purged . | . . . Corruption Blocked . | . . . Overload Shots . | . . . Overflow Damage . | . . . Projectiles . | . . . Explosions . | . . . Melee . | . . . Knockbacks . | . . . Impact . | . . . Kinetic . | . . . Secondary . | . . . Self-Inflicted Damage . | . . . Shots . | . . . Rammed . | . . . Targets Rammed . | . . . Kicked . | . . . Crushed . | . . . Highest Temperature 231 | 110 231 5 Average Temperature 66 | 59 68 5 Received Heat Transfer 504 | 30 450 24 Siege Activations . | . . . Robots Corrupted . | . . . Combat Hostiles . | . . . Parts Fried . | . . . Impact Corruptions . | . . . Robots Melted . | . . . Combat Hostiles . | . . . Parts Melted . | . . . Heat Transferred 629 | 148 481 . Parts Sabotaged . | . . . Parts Stolen . | . . . Parts Stripped . | . . . Power Chain Reactions . | . . . Alert | -11 -10 -10 ------- Run | Yrd Mat Min Peak Influence 241 | 20 241 6 Initial 13 | . 13 6 Average 79 | 2 91 6 Maximum Alert Level 1 | . 1 . Low Security (%) 92 | 100 91 100 Level 1 7 | . 8 . Level 2 . | . . . Level 3 . | . . . Level 4 . | . . . Level 5 . | . . . High Security . | . . . Max Security . | . . . Squads Dispatched 2 | . 2 . Investigation 1 | . 1 . Extermination . | . . . Reinforcement 1 | . 1 . Assault . | . . . Garrison . | . . . Intercept . | . . . Searches Triggered . | . . . Construction Impeded . | . . . Haulers Reinforced . | . . . Active Scanning Responses . | . . . Cargo Convoy Interrupts . | . . . Stealth | -11 -10 -10 --------- Run | Yrd Mat Min Distress Signals . | . . . Communications Jammed . | . . . Distress Signals . | . . . Times Spotted 18 | 1 15 2 Peak Tracking Total 4 | 1 4 2 Tactical Retreats . | . . . Traps | -11 -10 -10 ------- Run | Yrd Mat Min Traps Triggered . | . . . Indirectly . | . . . Trap Hack Attempts . | . . . Triggered . | . . . Disarmed . | . . . Reprogrammed . | . . . Reused . | . . . Traps Extracted . | . . . Installed . | . . . Triggered . | . . . Machines | -11 -10 -10 ---------- Run | Yrd Mat Min Machines Disabled . | . . . Max in Single Turn . | . . . Machines Repaired . | . . . Machines Dismantled . | . . . Machines Sabotaged . | . . . Overloaded Fab Kills . | . . . Hacking | -11 -10 -10 --------- Run | Yrd Mat Min Machines Accessed 3 | . 3 . Terminals 2 | . 2 . Fabricators . | . . . Repair Stations 1 | . 1 . Recycling Units . | . . . Scanalyzers . | . . . Garrison Access . | . . . Total Hacks 12 | . 12 . Successful 7 | . 7 . Failed 4 | . 4 . Catastrophic 1 | . 1 . Database Lockouts 1 | . 1 . Manual . | . . . Terminals 11 | . 11 . Fabricators . | . . . Repair Stations 1 | . 1 . Recycling Units . | . . . Scanalyzers . | . . . Garrison Access . | . . . Terminal Hacks 7 | . 7 . Record 7 | . 7 . Fabricator Hacks . | . . . Repair Station Hacks . | . . . Recycling Unit Hacks . | . . . Scanalyzer . | . . . Garrison Access Hacks . | . . . Unauthorized Hacks . | . . . Terminals . | . . . Fabricators . | . . . Repair Stations . | . . . Recycling Units . | . . . Scanalyzers . | . . . Garrison Access . | . . . Data Cores Recovered . | . . . Used . | . . . Hacking Detections 2 | . 2 . Full Trace Events 1 | . 1 . Feedback Events . | . . . Feedback Blocked . | . . . Robot Schematics Acquired . | . . . Robots Built . | . . . Authchips . | . . . Time . | . . . Total Robot Build Rating . | . . . Part Schematics Acquired . | . . . Parts Built . | . . . Authchips . | . . . Time . | . . . Total Part Build Rating . | . . . Parts Repaired . | . . . Time . | . . . Parts Recycled . | . . . Recycled Matter . | . . . Retrieved Matter . | . . . Retrieved Components . | . . . Parts Scanalyzed . | . . . Part Schematics Acquired . | . . . Parts Damaged . | . . . Bothacking | -11 -10 -10 ------------ Run | Yrd Mat Min Used RIF Installer . | . . . Robots Hacked . | . . . Non-combat . | . . . Combat . | . . . Robot Hacks Applied . | . . . Relay Couplers Released . | . . . Fabnet Peak Effective % . | . . . Robots Rewired . | . . . Allies Hacked . | . . . Hacks Repelled . | . . . Allies | -11 -10 -10 -------- Run | Yrd Mat Min Total Allies . | . . . Largest Group . | . . . Highest-Rated Group . | . . . Highest-Rated Ally . | . . . Total Orders . | . . . Ally Attacks . | . . . Total Damage . | . . . Kills . | . . . Allies Corrupted . | . . . Allies Melted . | . . . Intel | -11 -10 -10 ------- Run | Yrd Mat Min Robot Analysis Total . | . . . Derelict Logs Recovered . | . . . Drone Launches . | . . . Drone Recoveries . | . . . Exploration | -11 -10 -10 ------------- Run | Yrd Mat Min Turns Passed 582 | 76 504 2 Spaces Moved 330 | 73 257 . Core 15 | 15 . . Treads 21 | . 21 . Legs . | . . . Wheels 294 | 58 236 . Hover . | . . . Flight . | . . . Fastest Speed 50 | 50 80 . Average Speed 140 | 73 159 . Slowest Speed 480 | 80 480 . Overloaded Moves . | . . . Propulsion Burnouts . | . . . Robots Hopped . | . . . Cave-ins Triggered . | . . . Exploration Rate (%) 19 | 7 50 1 Regions Visited 2 Branch Regions 1 Pre-discovered Areas . | . . . Known Exits Taken 1 | . 1 . Unknown Exits Taken 1 | 1 . . Scrap Searched . | . . . Spaces Dug . | . . . Terrain Destroyed . | . . . Melee . | . . . Projectile . | . . . AOE . | . . . Terrain Rammed . | . . . Walls Destroyed . | . . . Machines Disabled . | . . . Actions | -11 -10 -10 --------- Run | Yrd Mat Min Total 393 | 85 306 2 Wait 8 | . 8 . Move 328 | 72 256 . Hop . | . . . Pick Up 11 | 4 7 . Fast Attach 9 | 5 4 . Attach 3 | . 2 1 Detach . | . . . Swap . | . . . Drop 2 | . 2 . Fire 32 | 4 27 1 Melee . | . . . Ram . | . . . Kick . | . . . Crush . | . . . Escape Stasis . | . . . Rewire . | . . . Trap . | . . . Miscellaneous . | . . . Route ------- -11/Scrapyard -10/Materials (discovered 2 exits: *Mat / *Min) -10/Mines History --------- Turn | Location | Event 2 | -11/Scrapyard | Met Revision 17 55 | -11/Scrapyard | Discovered new exit (range 8) 77 | -11/Scrapyard | Entered Materials 170 | -10/Materials | Discovered new exit (range 11) 243 | -10/Materials | Identified exit to Materials 299 | -10/Materials | Central database locked down 308 | -10/Materials | Build established: Mutant 326 | -10/Materials | Discovered new exit (range 12) 342 | -10/Materials | Identified exit to Mines 537 | -10/Materials | Core integrity fell below 50% 558 | -10/Materials | Core integrity fell below 20% 581 | -10/Materials | Entered Mines 583 | -10/Mines | Destroyed by G-47 Trooper with Particle Gun Last Messages --------------- [Complex 0b10]. >>Query(Complex 0b1) Primary subterranean facilities below the faux [Human] city, developed over the several decades following deployment of Project [Seraph] in 2211. Surrounding the complex are cave systems and old mining tunnels now populated by Derelicts. ALERT: Suspicious activity at Terminal M007. Dispatching Investigation squad. K-01 Serf collects debris. Dropped Wheel. Acquired Lgt. Treads. Med. Laser destroyed. Lgt. Ion Engine destroyed. Lgt. Assault Rifle destroyed. Lgt. Treads destroyed. K-01 Serf suffers critical hit (Burn). LOCATION=MINES GOAL=ESCAPE Map ----- +----------------------------------------------------+ | ???????????????????????????????? | | ???????????????????????????????? | | ???????????????????????????????? | | ???????????????????????????????? | | ???????????????????????????????? | | ???????????????????????????????? | | ???????????????????????????????? | | ???????????????????????????????? | | ???????????????????????????????? | | ???????????????????????????????? | | ???????????????????????????????? | | ???????????????????????????????? | | ???????????????????????????????? | | ???????????????????????????????? | | ???????????????????????????????? | | ???????????????????????????????? | | ???????????????????????????????? | | ???????????????????????????????? | | ???????????????????????????????? | | ???????????????????????????????? | | ??????????????????????#????????? | | ??????????????????????# ???????? | | ?????????????????????## ###????? | | ????????????????????## ##???? | | ????????????????????# g #???? | | ????????????????????# g @ #???? | | ????????????????????## ##???? | | ?????????????????????######????? | | ???????????????????????????????? | | ???????????????????????????????? | | ???????????????????????????????? | | ???????????????????????????????? | | ???????????????????????????????? | | ???????????????????????????????? | | ???????????????????????????????? | | ???????????????????????????????? | | ???????????????????????????????? | | ???????????????????????????????? | | ???????????????????????????????? | | ???????????????????????????????? | | ???????????????????????????????? | | ???????????????????????????????? | | ???????????????????????????????? | | ???????????????????????????????? | | ???????????????????????????????? | | ???????????????????????????????? | | ???????????????????????????????? | | ???????????????????????????????? | | ???????????????????????????????? | | ???????????????????????????????? | +----------------------------------------------------+ Best States ------------- Heat Dissipation 25 Energy Generation 10 Energy Capacity 250 Matter Stores 300 Matter Capacity 300 Sight Range 16 Terrain Scan Density 10 Evasion (%) 50 Recoil Reduction 2 Item Schematics ----------------- None Robot Schematics ------------------ None Fabricated ------------ Nothing Alien Tech Used ----------------- None Achievements -------------- None Challenges ------------ None Game ------ Seed HypercooledProjectionWings Manual? 0 Play Time 00:08:43 Cumulative 1.1 hours Start 2024.04.01 @ 08:03:51 End 2024.04.01 @ 08:12:54 Sessions 1 Manual Loads 0 Difficulty Rogue Special Mode None Game No. 2 Rogue 2 Adventurer 0 Explorer 0 Win Type - Total 0 Types 0/0/0/0/0/0/0/0/0 Lore% 1 Gallery% 3 Achievement% 5 Wizard Run 0 Options --------- Layout 1 ASCII 0 Keyboard 0 Movement Numpad Keybinds 0 Fullscreen 2 Font 32/SmallcapsGlow Map View 50x35 Zoom Use 0% Tactical HUD 0 Map Filters NONE Filters NONE Steam 0 RUN: cf929648-8c2c-41ae-9703-ec406cb74a88